fUSD/lending_fUSD_20251028
["ID","MTS","AMOUNT","RATE_DAILY","PERIOD"]
[392576694,1761684499923,1328.0,0.000315,120]
[392576696,1761684562059,588.0,0.000315,120]
[392576698,1761684602881,1000.0,0.0002,7]
[392576699,1761684612910,150.0,0.00014997,120]
[392576711,1761684632626,-244.01246108,0.000148,2]
[392576712,1761684632635,-150.0,0.00014899,2]
[392576713,1761684632647,-179.25693067,0.00014899,2]
[392576714,1761684632657,-534.51920002,0.00014899,2]
[392576715,1761684632667,-18.33640823,0.00014899,2]
[392576716,1761684632681,-209.23967712,0.00014899,2]
[392576717,1761684632692,-160.0,0.00014899,2]
[392576718,1761684632701,-185.91282753,0.000149,2]
[392576719,1761684632711,-574.53,0.000149,2]
[392576720,1761684632721,-282.02380422,0.000149,2]
[392576721,1761684632730,-10512.35575051,0.000149,2]
[392576722,1761684632742,-44282.68024902,0.000149,2]
[392577179,1761684637340,-4594.24826635,0.000149,2]
[392577181,1761684637353,-8390.91188085,0.000149,2]
[392577183,1761684637363,-934.77550947,0.000149,2]
[392577185,1761684637374,-38798.61953317,0.000149,2]
[392577188,1761684637383,-326.92801435,0.000149,2]
[392577190,1761684637394,-6469.94694872,0.000149,2]
[392577192,1761684637405,-180.02783446,0.000149,2]
[392577194,1761684637414,-270.95297813,0.000149,2]
[392577196,1761684637424,-723.39347767,0.000149,2]
[392577198,1761684637433,-472.00722372,0.000149,2]
[392577200,1761684637442,-150.0,0.00014907,2]
[392577202,1761684637451,-500.0,0.00014973,2]
[392577204,1761684637461,-500.0,0.00014973,2]
[392577206,1761684637470,-500.0,0.00014973,2]
[392577208,1761684637480,-500.0,0.00014973,2]
[392577210,1761684637489,-500.0,0.00014973,2]
[392577212,1761684637498,-404.21938794,0.00014973,2]
[392577214,1761684637509,-500.0,0.00014973,2]
[392577216,1761684637521,-500.0,0.00014973,2]
[392577218,1761684637530,-500.0,0.00014973,2]
[392577220,1761684637539,-445.86977539,0.00014973,2]
[392577222,1761684637548,-500.0,0.00014973,2]
[392577224,1761684637559,-331.51333905,0.00014973,2]
[392577226,1761684637568,-500.0,0.00014973,2]
[392577228,1761684637577,-500.0,0.00014973,2]
[392577230,1761684637588,-500.0,0.00014973,2]
[392577232,1761684637597,-510.117515,0.00014985,2]
[392577234,1761684637606,-150.0,0.00014986,2]
[392577237,1761684637616,-299.67565023,0.00014986,2]
[392577239,1761684637625,-150.0,0.00014986,2]
[392577241,1761684637635,-246.46040071,0.00014986,2]
[392577243,1761684637645,-150.00000001,0.00014986,2]
[392577245,1761684637656,-150.0,0.00014986,2]
[392577246,1761684637665,-150.0,0.00014986,2]
[392577249,1761684637675,-150.0,0.00014986,2]
[392577250,1761684637685,-150.0,0.00014986,2]
[392577253,1761684637695,-270.47508234,0.00014994,2]
[392577255,1761684637706,-150.0,0.00014997,2]
[392577257,1761684637716,-515.88624332,0.00014999,2]
[392577259,1761684637726,-500.0,0.00014999,2]
[392577260,1761684637735,-500.0,0.00014999,2]
[392577262,1761684637745,-256.85411537,0.00014999,2]
[392577265,1761684637757,-243.14588463,0.00014999,2]
[392577267,1761684637766,-500.0,0.00014999,2]
[392577269,1761684637776,-500.0,0.00014999,2]
[392577271,1761684637785,-500.0,0.00014999,2]
[392577273,1761684637795,-500.0,0.00014999,2]
[392577275,1761684637804,-500.0,0.00014999,2]
[392577277,1761684637814,-500.0,0.00014999,2]
[392577279,1761684637823,-500.0,0.00014999,2]
[392577281,1761684637833,-614.76058795,0.00014999,2]
[392577283,1761684637843,-500.0,0.00014999,2]
[392577285,1761684637853,-500.0,0.00014999,2]
[392577287,1761684637863,-500.0,0.00014999,2]
[392577289,1761684637873,-500.0,0.00014999,2]
[392577291,1761684637883,-500.0,0.00014999,2]
[392577293,1761684637893,-500.0,0.00014999,2]
[392577295,1761684637904,-500.0,0.00014999,2]
[392577297,1761684637913,-500.0,0.00014999,2]
[392577299,1761684637923,-500.0,0.00014999,2]
[392577301,1761684637933,-500.0,0.00014999,2]
[392577303,1761684637943,-336.8,0.00014999,2]
[392577305,1761684637952,-500.0,0.00014999,2]
[392577307,1761684637962,-500.0,0.00014999,2]
[392577309,1761684637972,-500.0,0.00014999,2]
[392577311,1761684637981,-500.0,0.00014999,2]
[392577312,1761684637991,-500.0,0.00014999,2]
[392577314,1761684638001,-500.0,0.00014999,2]
[392577316,1761684638011,-500.0,0.00014999,2]
[392577318,1761684638021,-500.0,0.00014999,2]
[392577320,1761684638031,-572.92941166,0.00014999,2]
[392577322,1761684638041,-500.0,0.00014999,2]
[392577324,1761684638050,-500.0,0.00014999,2]
[392577326,1761684638061,-351.10128926,0.00014999,2]
[392577328,1761684638070,-500.0,0.00014999,2]
[392577331,1761684638081,-500.0,0.00014999,2]
[392577333,1761684638091,-500.0,0.00014999,2]
[392577335,1761684638101,-500.0,0.00014999,2]
[392577337,1761684638112,-500.0,0.00014999,2]
[392577338,1761684638121,-500.0,0.00014999,2]
[392577340,1761684638130,-406.43251758,0.00014999,2]
[392577342,1761684638138,-500.0,0.00014999,2]
[392577344,1761684638150,-500.0,0.00014999,2]
[392577346,1761684638163,-500.0,0.00014999,2]
[392577348,1761684638173,-500.0,0.00014999,2]
[392577350,1761684638184,-500.0,0.00014999,2]
[392577352,1761684638195,-500.0,0.00014999,2]
[392577354,1761684638207,-500.0,0.00014999,2]
[392577356,1761684638218,-500.0,0.00014999,2]
[392577358,1761684638228,-500.0,0.00014999,2]
[392577360,1761684638239,-500.0,0.00014999,2]
[392577362,1761684638249,-500.0,0.00014999,2]
[392577364,1761684638260,-500.0,0.00014999,2]
[392577366,1761684638270,-500.0,0.00014999,2]
[392577368,1761684638280,-431.4250392,0.00014999,2]
[392577370,1761684638291,-500.0,0.00014999,2]
[392577372,1761684638301,-500.0,0.00014999,2]
[392577374,1761684638312,-500.0,0.00014999,2]
[392577376,1761684638323,-290.94,0.00014999,2]
[392577378,1761684638334,-500.0,0.00014999,2]
[392577380,1761684638344,-500.0,0.00014999,2]
[392577382,1761684638355,-500.0,0.00014999,2]
[392577384,1761684638366,-475.0262511,0.00014999,2]
[392577386,1761684638378,-502.58568334,0.00014999,2]
[392577388,1761684638389,-500.0,0.00014999,2]
[392577390,1761684638401,-500.0,0.00014999,2]
[392577392,1761684638411,-500.0,0.00014999,2]
[392577394,1761684638423,-612.47568353,0.00014999,2]
[392577396,1761684638434,-530.59397211,0.00014999,2]
[392577399,1761684638445,-500.0,0.00014999,2]
[392577401,1761684638455,-500.0,0.00014999,2]
[392577403,1761684638465,-500.0,0.00014999,2]
[392577404,1761684638476,-500.0,0.00014999,2]
[392577406,1761684638486,-500.0,0.00014999,2]
[392577408,1761684638496,-641.3407631,0.00014999,2]
[392577410,1761684638506,-666.0,0.00014999,2]
[392577412,1761684638520,-666.0,0.00014999,2]
[392577414,1761684638530,-2196725.3984306,0.00015,2]
[392577419,1761684638569,-18062.74479576,0.00015,2]
[392577667,1761684641111,-0.03553251,0.00014616,2]
[392577670,1761684641131,-892.41541494,0.00014616,2]
[392577672,1761684641144,-4184.66020186,0.00015,2]
[392577674,1761684641156,-1503.22837703,0.00015,2]
[392577676,1761684641167,-626.25175563,0.00015,2]
[392577679,1761684641181,-580318.24901397,0.00015,2]
[392577684,1761684641258,-596.9007352,0.00015,2]
[392577685,1761684641269,-1988.49130132,0.00015,2]
[392577688,1761684641280,-1858.99635958,0.00015,2]
[392578133,1761684645646,-291.4769999,0.00015,2]
[392578135,1761684645658,-899.84,0.00015,2]
[392579933,1761684682439,953.0,0.000315,120]
[392579934,1761684683238,396.0,0.000315,120]
[392579935,1761684684014,568.0,0.000315,120]
[392579936,1761684684793,1739.0,0.000315,120]
[392579937,1761684685678,246.0,0.000315,120]
[392579938,1761684742432,1935.0,0.000315,120]
[392579939,1761684743426,204.0,0.000315,120]
[392579940,1761684744053,584.0,0.000315,120]
[392579941,1761684805119,294.0,0.000315,120]
[392579942,1761684806224,1606.0,0.000315,120]
[392579943,1761684865043,1188.0,0.000315,120]
[392579944,1761684865834,894.1399046,0.000315,120]
[392579945,1761685031790,194.77,0.00014395,2]
[392579946,1761685127332,265.98065449,0.00017135,5]
[392579947,1761685156374,5065.495569,0.00014494,2]
[392579948,1761685392647,1161.94,0.00031507,120]
[392579949,1761685453694,526.14,0.00026263,120]
[392579950,1761685480648,750.14,8.575e-05,2]
[392579951,1761685481295,750.14,9.026e-05,2]
[392579952,1761685481732,750.14,9.478e-05,2]
[392579953,1761685481954,750.14,9.929e-05,2]
[392579954,1761685482392,750.14,0.0001038,2]
[392579955,1761685483128,750.14,0.00010831,2]
[392579956,1761685483193,750.14,0.00011283,2]
[392579957,1761685483352,750.14,0.00011734,2]
[392579958,1761685483565,750.14,0.00012185,2]
[392579959,1761685483785,750.14,0.00012637,2]
[392579960,1761685483997,750.14,0.00013088,2]
[392579961,1761685484227,750.14,0.00013539,2]
[392579962,1761685484452,750.14,0.00013991,2]
[392579963,1761685484718,750.14,0.00014442,2]
[392579964,1761685512261,150.0,0.00013488,2]
[392579966,1761685811606,-500.0,0.00014567,2]
[392579967,1761685811628,-500.0,0.00014567,2]
[392579968,1761685811649,-304.60928756,0.00014567,2]
[392579969,1761685818600,-216.9840127,0.00014607,2]
[392579970,1761685826802,-200.0,0.00014636,2]
[392580015,1761685831707,-892.45094745,0.00014787,2]
[392580016,1761685831717,-715.13075243,0.00014893,2]
[392580017,1761685831765,-35.00924757,0.00014893,2]
[392580018,1761685831778,-912.05093812,0.00014899,2]
[392580019,1761685836211,-287.94906188,0.00014899,2]
[392580020,1761685836220,-200.0,0.00014899,2]
[392580021,1761685836230,-161.35059604,0.000149,2]
[392580022,1761685836239,-188.01586948,0.000149,2]
[392580023,1761685836261,-801.236151,0.000149,2]
[392580024,1761685836272,-150.0,0.00014972,2]
[392580025,1761685836282,-500.0,0.00014973,2]
[392580026,1761685836293,-505.25069776,0.00014973,2]
[392580027,1761685836302,-500.0,0.00014973,2]
[392580028,1761685836312,-501.62053605,0.00014973,2]
[392580029,1761685836321,-500.0,0.00014973,2]
[392580030,1761685836331,-500.0,0.00014973,2]
[392580031,1761685836341,-500.0,0.00014973,2]
[392580033,1761685836351,-516.6096342,0.00014973,2]
[392580035,1761685836361,-514.46,0.00014973,2]
[392580037,1761685836371,-298.26785489,0.00014973,2]
[392580039,1761685836381,-1461.394,0.00014998,2]
[392580041,1761685836391,-506.54790288,0.00014999,2]
[392580043,1761685836401,-159.30325975,0.00014999,2]
[392580045,1761685836411,-500.0,0.00014999,2]
[392580047,1761685836420,-500.0,0.00014999,2]
[392580049,1761685836430,-500.0,0.00014999,2]
[392580051,1761685836440,-500.0,0.00014999,2]
[392580053,1761685836449,-500.0,0.00014999,2]
[392580055,1761685836459,-500.0,0.00014999,2]
[392580057,1761685836470,-406.43251758,0.00014999,2]
[392580059,1761685836479,-500.0,0.00014999,2]
[392580061,1761685836489,-500.0,0.00014999,2]
[392580063,1761685836499,-500.0,0.00014999,2]
[392580065,1761685836511,-290.94,0.00014999,2]
[392580067,1761685836522,-500.0,0.00014999,2]
[392580069,1761685836531,-242.68232765,0.00014999,2]
[392580070,1761685836545,-257.31767235,0.00014999,2]
[392580071,1761685836554,-500.0,0.00014999,2]
[392580072,1761685836563,-500.0,0.00014999,2]
[392580073,1761685836573,-500.0,0.00014999,2]
[392580074,1761685836582,-500.0,0.00014999,2]
[392580075,1761685836592,-500.0,0.00014999,2]
[392580076,1761685836602,-500.0,0.00014999,2]
[392580077,1761685836612,-126.08232765,0.00014999,2]
[392580078,1761685836639,-373.91767235,0.00014999,2]
[392580079,1761685836650,-500.0,0.00014999,2]
[392580080,1761685836665,-500.0,0.00014999,2]
[392580081,1761685836675,-500.0,0.00014999,2]
[392580082,1761685836684,-500.0,0.00014999,2]
[392580083,1761685836694,-431.4250392,0.00014999,2]
[392580084,1761685836703,-500.0,0.00014999,2]
[392580085,1761685836713,-500.0,0.00014999,2]
[392580086,1761685836722,-500.0,0.00014999,2]
[392580087,1761685836731,-500.0,0.00014999,2]
[392580088,1761685836740,-500.0,0.00014999,2]
[392580089,1761685836750,-500.0,0.00014999,2]
[392580091,1761685836761,-500.0,0.00014999,2]
[392580093,1761685836771,-500.0,0.00014999,2]
[392580095,1761685836781,-572.92941166,0.00014999,2]
[392580097,1761685836791,-500.0,0.00014999,2]
[392580099,1761685836800,-500.0,0.00014999,2]
[392580101,1761685836810,-500.0,0.00014999,2]
[392580103,1761685836820,-612.47568353,0.00014999,2]
[392580105,1761685836829,-500.0,0.00014999,2]
[392580107,1761685836839,-500.0,0.00014999,2]
[392580109,1761685836849,-351.10128926,0.00014999,2]
[392580111,1761685836859,-155.0,0.00014999,2]
[392580113,1761685836868,-500.0,0.00014999,2]
[392580115,1761685836878,-500.0,0.00014999,2]
[392580117,1761685836888,-500.0,0.00014999,2]
[392580119,1761685836898,-500.0,0.00014999,2]
[392580120,1761685836907,-500.0,0.00014999,2]
[392580122,1761685836916,-500.0,0.00014999,2]
[392580125,1761685836927,-641.3407631,0.00014999,2]
[392580126,1761685836936,-500.0,0.00014999,2]
[392580129,1761685836946,-500.0,0.00014999,2]
[392580130,1761685836955,-500.0,0.00014999,2]
[392580133,1761685836966,-500.0,0.00014999,2]
[392580135,1761685836975,-475.0262511,0.00014999,2]
[392580137,1761685836986,-150.0,0.00014999,2]
[392580139,1761685836995,-150.0,0.00014999,2]
[392580141,1761685837007,-500.0,0.00014999,2]
[392580143,1761685837017,-150.0,0.00014999,2]
[392580145,1761685837027,-500.0,0.00014999,2]
[392580147,1761685837037,-502.58568334,0.00014999,2]
[392580149,1761685837047,-530.59397211,0.00014999,2]
[392580151,1761685837057,-500.0,0.00014999,2]
[392580153,1761685837067,-150.0,0.00014999,2]
[392580155,1761685837077,-150.0,0.00014999,2]
[392580157,1761685837086,-500.0,0.00014999,2]
[392580159,1761685837097,-150.0,0.00014999,2]
[392580161,1761685837110,-150.0,0.00014999,2]
[392580163,1761685837120,-150.0,0.00014999,2]
[392580165,1761685837129,-200.0,0.00014999,2]
[392580167,1761685837139,-500.0,0.00014999,2]
[392580169,1761685837148,-500.0,0.00014999,2]
[392580171,1761685837158,-500.0,0.00014999,2]
[392580173,1761685837168,-500.0,0.00014999,2]
[392580175,1761685837177,-500.0,0.00014999,2]
[392580177,1761685837187,-500.0,0.00014999,2]
[392580179,1761685837196,-500.0,0.00014999,2]
[392580181,1761685837209,-500.0,0.00014999,2]
[392580183,1761685837226,-500.0,0.00014999,2]
[392580185,1761685837237,-500.0,0.00014999,2]
[392580187,1761685837246,-614.76058795,0.00014999,2]
[392580189,1761685837258,-500.0,0.00014999,2]
[392580191,1761685837268,-500.0,0.00014999,2]
[392580193,1761685837278,-500.0,0.00014999,2]
[392580195,1761685837287,-500.0,0.00014999,2]
[392580197,1761685837297,-500.0,0.00014999,2]
[392580199,1761685837307,-500.0,0.00014999,2]
[392580201,1761685837317,-500.0,0.00014999,2]
[392580204,1761685837327,-500.0,0.00014999,2]
[392580206,1761685837336,-500.0,0.00014999,2]
[392580208,1761685837346,-500.0,0.00014999,2]
[392580210,1761685837355,-500.0,0.00014999,2]
[392580212,1761685837367,-336.8,0.00014999,2]
[392580214,1761685837378,-666.0,0.00014999,2]
[392580217,1761685837388,-666.0,0.00014999,2]
[392580219,1761685837397,-682.64160043,0.00014999,2]
[392580221,1761685837407,-44476.50587482,0.00015,2]
[392580276,1761685837896,-1771.22174288,0.00015,2]
[392580278,1761685837907,-1483.51564755,0.00015,2]
[392580280,1761685837919,-843.27403685,0.00015,2]
[392580282,1761685837930,-604.94887151,0.00015,2]
[392580295,1761685838030,-2233823.80962943,0.00015,2]
[392580298,1761685838047,-12032.813609,0.00015,2]
[392580301,1761685838067,-287.6115,0.00015,2]
[392580305,1761685838102,-32657.6609937,0.00015,2]
[392580307,1761685838114,-12979.19885747,0.00015,2]
[392580464,1761685839667,-12224.0,0.00015,2]
[392580477,1761685839780,-1266.99344383,0.00015,2]
[392580512,1761685840116,-24971.42803235,0.00015,2]
[392580515,1761685840128,-294.27,0.00015,2]
[392580520,1761685840174,-690.37628961,0.00015,2]
[392580789,1761685842676,-38772.99457634,0.00015,2]
[392580807,1761685842839,-11245.23472022,0.00015,2]
[392580809,1761685842850,-519.230507,0.00015,2]
[392580811,1761685842861,-308.70814838,0.00015,2]
[392580813,1761685842872,-309.92211996,0.00015,2]
[392581107,1761685845632,-1097.21535,0.00015,2]
[392581109,1761685845644,-1858.21399078,0.00015,2]
[392581115,1761685845691,-1127.3502,0.00015,2]
[392581117,1761685845703,-1427.58352349,0.00015,2]
[392581145,1761685845966,-540.18900541,0.00015,2]
[392581147,1761685845977,-394.394,0.00015,2]
[392582402,1761685943498,-1204.922,0.000147,2]
[392582403,1761685949978,-360.10801442,0.000149,2]
[392582404,1761685950000,-1017.29376983,0.000149,2]
[392582405,1761685956844,-500.0,0.00014973,2]
[392582406,1761685956866,-468.73154136,0.00014973,2]
[392582407,1761685956888,-500.0,0.00014973,2]
[392582408,1761685965519,-374.21139354,0.00014973,2]
[392582409,1761686048108,2112.022138,7.945e-05,2]
[392582410,1761686113751,-151.39351312,0.000149,2]
[392582411,1761686119698,-500.0,0.00014973,2]
[392582412,1761686119726,-500.0,0.00014973,2]
[392582413,1761686119749,-500.0,0.00014973,2]
[392582414,1761686119772,-239.00127685,0.00014973,2]
[392582415,1761686128814,-500.0,0.00014973,2]
[392582416,1761686154599,-315.09451267,0.000149,2]
[392582417,1761686171374,-1200.0,0.00014999,2]
[392582418,1761686171394,-500.0,0.00014999,2]
[392582419,1761686171415,-300.0,0.00014999,2]
[392582420,1761686175525,-480.0,0.00014999,2]
[392582421,1761686175569,-150.0,0.00014999,2]
[392582422,1761686175598,-246.0,0.00014999,2]
[392582423,1761686175622,-500.0,0.00014999,2]
[392582424,1761686175649,-500.0,0.00014999,2]
[392582425,1761686175681,-124.0,0.00014999,2]
[392582426,1761686181122,-226.0,0.00014999,2]
[392582427,1761686181148,-500.0,0.00014999,2]
[392582428,1761686181169,-195.0,0.00014999,2]
[392582429,1761686181196,-253.299868,0.00015,2]
[392582430,1761686181222,-825.700132,0.00015,2]
[392582431,1761686188238,-2000.0,0.00015,2]
[392582432,1761686189849,-2000.0,0.00015,2]
[392582433,1761686191113,-2000.0,0.00015,2]
[392582434,1761686192371,-2000.0,0.00015,2]
[392582435,1761686193986,-271.02614,0.0001485,2]
[392582436,1761686194009,-1728.97386,0.00015,2]
[392582437,1761686198102,-2000.0,0.00015,2]
[392582438,1761686200525,-2000.0,0.00015,2]
[392582439,1761686202569,-2000.0,0.00015,2]
[392582440,1761686204986,-2000.0,0.00015,2]
[392582441,1761686207909,-2000.0,0.00015,2]
[392582442,1761686210300,-2000.0,0.00015,2]
[392582443,1761686212405,-2000.0,0.00015,2]
[392582444,1761686214416,-2000.0,0.00015,2]
[392582445,1761686216545,-2000.0,0.00015,2]
[392582446,1761686219384,-2000.0,0.00015,2]
[392582447,1761686223667,-2000.0,0.00015,2]
[392582448,1761686225721,-2000.0,0.00015,2]
[392582449,1761686227927,-2000.0,0.00015,2]
[392582450,1761686721156,-892.45094745,0.00014665,2]
[392582451,1761686721178,-274.57837116,0.00014666,2]
[392582452,1761686721200,-195.0,0.00014668,2]
[392582453,1761686724121,-195.0,0.00014671,2]
[392582454,1761686724149,-327.05995217,0.000147,2]
[392582455,1761686726835,-499.9843703,0.000147,2]
[392582456,1761686728641,-136.89367753,0.000147,2]
[392582457,1761686737236,-195.0,0.00014782,2]
[392582458,1761686748230,999.0,0.00016767,3]
[392582459,1761686807088,-915.56439282,0.000149,2]
[392582460,1761686807113,-452.9611308,0.000149,2]
[392582461,1761686807134,-151.39351309,0.000149,2]
[392582462,1761686807153,-314.67148248,0.000149,2]
[392582463,1761686807172,-482.26231844,0.000149,2]
[392582464,1761686807192,-300.0,0.00014972,2]
[392582465,1761686807212,-300.0,0.00014972,2]
[392582466,1761686807232,-1200.0,0.00014972,2]
[392582467,1761686807251,-500.0,0.00014973,2]
[392582468,1761686807274,-118.291902,0.00014973,2]
[392582499,1761687031962,-185.42162884,0.000148,2]
[392582500,1761687031972,-225.85512,0.0001485,2]
[392582501,1761687031981,-824.00795352,0.000149,2]
[392582502,1761687031990,-2699.04794116,0.000149,2]
[392582518,1761687032323,-1614.25002466,0.000149,2]
[392582520,1761687032332,-301.9740872,0.000149,2]
[392582522,1761687032340,-209.78098832,0.000149,2]
[392582524,1761687032350,-329.79759179,0.00014973,2]
[392582526,1761687032359,-500.0,0.00014973,2]
[392582528,1761687032367,-500.0,0.00014973,2]
[392582530,1761687032376,-498.62163948,0.00014973,2]
[392582532,1761687032385,-506.3469103,0.00014999,2]
[392582534,1761687032394,-800.0,0.00014999,2]
[392582536,1761687032404,-150.0,0.00014999,2]
[392582538,1761687032413,-32406.85470223,0.00015,2]
[392582540,1761687032424,-1614.31558144,0.00015,2]
[392582544,1761687032443,-114207.08997144,0.00015,2]
[392583023,1761687037798,-5643.264,0.00015,2]
[392583024,1761687037859,-23555.74222512,0.00015,2]
[392583025,1761687037871,-2116.61395858,0.00015,2]
[392583026,1761687037920,-281.60666138,0.00015,2]
[392583047,1761687039934,-89213.82161286,0.00015,2]
[392583050,1761687039945,-62091.207771,0.00015,2]
[392583075,1761687040449,-4181.28646845,0.00015,2]
[392583078,1761687040488,-344.55933693,0.00015,2]
[392583081,1761687040507,-299.04099979,0.00015,2]
[392583082,1761687040517,-1126.85,0.00015,2]
[392583089,1761687042967,-9955.12125826,0.00015,2]
[392583090,1761687043015,-287.35155955,0.00015,2]
[392583091,1761687043029,-329.89015766,0.00015,2]
[392583092,1761687044751,499.9843703,0.00014507,2]
[392583094,1761687045927,-175.51076564,0.00014507,2]
[392583095,1761687045937,-2079.36563436,0.00015,2]
[392583096,1761687046043,-5638.299742,0.00015,2]
[392583097,1761687046055,-5629.7863043,0.00015,2]
[392583104,1761687047841,-6768.91080001,0.00015,2]
[392583106,1761687053917,1177.65810365,0.00014999,5]
[392583107,1761687066575,1000.0,0.000145,5]
[392583108,1761687068962,2100.0,0.000146,5]
[392583109,1761687071096,3200.0,0.000147,5]
[392583110,1761687073194,4300.0,0.000148,5]
[392583111,1761687075306,5400.0,0.000149,5]
[392583112,1761687135693,9839.14378829,0.00031506,120]
[392583113,1761687155602,352.30310174,0.00017899,3]
[392583114,1761687157375,-905.3126145,0.000149,2]
[392583115,1761687157405,-151.39351309,0.000149,2]
[392583116,1761687157436,-638.32059391,0.000149,2]
[392583117,1761687157469,-333.41712708,0.000149,2]
[392583118,1761687157497,-500.0,0.00014973,2]
[392583119,1761687157523,-422.76465953,0.00014973,2]
[392583120,1761687157550,-1691.0,0.00014986,2]
[392583121,1761687157575,-200.0,0.00014991,2]
[392583122,1761687157602,-500.0,0.00014991,2]
[392583123,1761687157631,-246.67080464,0.00014991,2]
[392583124,1761687157662,-500.0,0.00014991,2]
[392583125,1761687157690,-500.0,0.00014991,2]
[392583126,1761687157718,-500.0,0.00014991,2]
[392583127,1761687157746,-250.0,0.00014991,2]
[392583128,1761687157772,-500.0,0.00014991,2]
[392583129,1761687157799,-250.0,0.00014991,2]
[392583130,1761687157826,-500.0,0.00014991,2]
[392583131,1761687157851,-250.0,0.00014991,2]
[392583132,1761687157886,-500.0,0.00014991,2]
[392583133,1761687157920,-250.0,0.00014991,2]
[392583134,1761687157948,-322.2413745,0.00014991,2]
[392583135,1761687158618,-177.7586255,0.00014991,2]
[392583136,1761687192040,334.0097676,0.000315,120]
[392583137,1761687255513,-500.0,0.00014973,2]
[392583138,1761687255543,-505.51997312,0.00014973,2]
[392583139,1761687255580,-500.0,0.0001499,2]
[392583140,1761687255617,-324.22260275,0.0001499,2]
[392583141,1761687255646,-150.0,0.0001499,2]
[392583142,1761687255679,-250.0,0.00014991,2]
[392583143,1761687255712,-500.0,0.00014991,2]
[392583144,1761687255744,-250.0,0.00014991,2]
[392583145,1761687255776,-250.0,0.00014991,2]
[392583146,1761687255807,-500.0,0.00014991,2]
[392583147,1761687255837,-500.0,0.00014991,2]
[392583148,1761687255868,-500.0,0.00014991,2]
[392583149,1761687255897,-200.0,0.00014991,2]
[392583150,1761687255929,-500.0,0.00014991,2]
[392583151,1761687255962,-250.0,0.00014991,2]
[392583152,1761687255992,-500.0,0.00014991,2]
[392583153,1761687256024,-500.0,0.00014991,2]
[392583154,1761687256053,-250.0,0.00014991,2]
[392583155,1761687256083,-500.0,0.00014991,2]
[392583156,1761687256113,-500.0,0.00014991,2]
[392583157,1761687256148,-250.0,0.00014991,2]
[392583158,1761687256176,-500.0,0.00014991,2]
[392583159,1761687256204,-250.0,0.00014991,2]
[392583160,1761687256234,-500.0,0.00014991,2]
[392583161,1761687256262,-574.12855637,0.00014991,2]
[392583162,1761687256291,-250.0,0.00014991,2]
[392583163,1761687256319,-500.0,0.00014991,2]
[392583164,1761687256346,-250.0,0.00014991,2]
[392583165,1761687256376,-500.0,0.00014991,2]
[392583166,1761687256403,-250.0,0.00014991,2]
[392583167,1761687256434,-500.0,0.00014991,2]
[392583168,1761687256463,-250.0,0.00014991,2]
[392583169,1761687256492,-500.0,0.00014991,2]
[392583170,1761687256519,-250.0,0.00014991,2]
[392583171,1761687256546,-500.0,0.00014991,2]
[392583172,1761687256578,-250.0,0.00014991,2]
[392583173,1761687256609,-500.0,0.00014991,2]